fUST/lending_fUST_20240524
["ID","MTS","AMOUNT","RATE_DAILY","PERIOD"]
[327862473,1716563442290,-500.0,0.00024657,2]
[327862474,1716563442451,-500.0,0.00024657,2]
[327862475,1716563442461,-500.0,0.00024657,2]
[327862476,1716563442470,-632.22,0.00024657,2]
[327862477,1716563442480,-662.16,0.00024657,2]
[327862478,1716563442489,-500.0,0.00024657,2]
[327862479,1716563442501,-500.0,0.00024657,2]
[327862480,1716563442510,-802.15,0.00024657,2]
[327862481,1716563442519,-771.62,0.00024657,2]
[327862482,1716563442529,-2000.0,0.00024658,2]
[327862483,1716563442538,-2000.0,0.00024831,2]
[327862484,1716563442548,-500.0,0.00024931,3]
[327862485,1716563442557,-500.0,0.00024931,3]
[327862486,1716563442566,-500.0,0.00024931,3]
[327862487,1716563442575,-500.0,0.00024931,3]
[327862488,1716563442585,-500.0,0.00024931,3]
[327862489,1716563442594,-472.16612087,0.00024931,3]
[327862490,1716563442603,-250.0,0.00024931,3]
[327862491,1716563442613,-500.0,0.00024931,3]
[327862492,1716563442622,-670.2,0.00024931,3]
[327862493,1716563442632,-500.0,0.00024931,3]
[327862494,1716563442641,-500.0,0.00024931,3]
[327862495,1716563442651,-627.46,0.00024931,3]
[327862496,1716563442660,-500.0,0.00024931,3]
[327862497,1716563442670,-500.0,0.00024931,3]
[327862498,1716563442680,-500.0,0.00024931,3]
[327862499,1716563442690,-500.0,0.00024931,3]
[327862500,1716563442702,-500.0,0.00024931,3]
[327862501,1716563442711,-305.34919179,0.00024931,3]
[327862502,1716563442720,-500.0,0.00024931,3]
[327862503,1716563442730,-500.0,0.00024931,3]
[327862504,1716563442743,-831.85,0.00024931,3]
[327862505,1716563442752,-535.47,0.00024931,3]
[327862506,1716563442761,-902.77,0.00024931,3]
[327862507,1716563442771,-500.0,0.00024931,3]
[327862508,1716563442780,-500.0,0.00024931,3]
[327862509,1716563442791,-500.0,0.00024931,3]
[327862510,1716563442800,-382.73119001,0.00024931,3]
[327862511,1716563442810,-500.0,0.00024931,3]
[327862512,1716563442819,-500.0,0.00024931,3]
[327862513,1716563442829,-500.0,0.00024931,2]
[327862514,1716563442839,-485.8,0.00024931,3]
[327862515,1716563442848,-500.0,0.00024931,3]
[327862516,1716563442858,-1003.69,0.00024931,3]
[327862517,1716563442867,-615.12,0.00024931,3]
[327862518,1716563442876,-433.51542257,0.00024931,2]
[327862519,1716563442886,-500.0,0.00024931,3]
[327862520,1716563442896,-1029.36,0.00024931,3]
[327862521,1716563442906,-913.62,0.00024931,3]
[327862522,1716563442915,-1050.38,0.00024931,3]
[327862523,1716563442924,-1319.31,0.00024931,3]
[327862524,1716563442933,-500.0,0.00024931,3]
[327862525,1716563442943,-500.0,0.00024931,3]
[327862526,1716563442952,-500.0,0.00024931,3]
[327862527,1716563442961,-500.0,0.00024931,3]
[327862528,1716563442971,-1025.28,0.00024931,3]
[327862529,1716563442980,-562.25,0.00024931,3]
[327862530,1716563442990,-500.0,0.00024931,3]
[327862531,1716563443006,-1352.42,0.00024931,3]
[327862532,1716563443015,-1741.98,0.00024931,3]
[327862533,1716563443024,-500.0,0.00024931,3]
[327862534,1716563443033,-758.1,0.00024931,3]
[327862535,1716563443042,-500.0,0.00024931,3]
[327862536,1716563443051,-553.66,0.00024931,3]
[327862537,1716563443060,-500.0,0.00024931,3]
[327862538,1716563443069,-500.0,0.00024931,3]
[327862539,1716563443078,-500.0,0.00024931,3]
[327862540,1716563443087,-605.03,0.00024931,3]
[327862541,1716563443097,-500.0,0.00024931,3]
[327862542,1716563443107,-500.0,0.00024931,3]
[327862543,1716563443116,-807.7,0.00024931,3]
[327862544,1716563443125,-500.0,0.00024931,3]
[327862545,1716563443135,-500.0,0.00024931,3]
[327862546,1716563443144,-500.0,0.00024931,3]
[327862547,1716563443154,-500.0,0.00024931,3]
[327862548,1716563443164,-1167.23,0.00024931,3]
[327862549,1716563443173,-500.0,0.00024931,3]
[327862550,1716563443183,-500.0,0.00024931,3]
[327862552,1716563443194,-1266.99,0.00024931,3]
[327862554,1716563443205,-500.0,0.00024931,3]
[327862555,1716563443223,-1109.82,0.00024931,3]
[327862557,1716563443239,-4811.81,0.00024931,3]
[327862559,1716563443256,-1914.36,0.00024931,3]
[327862561,1716563443268,-500.0,0.00024931,3]
[327862563,1716563443278,-500.0,0.00024931,3]
[327862564,1716563443289,-978.64,0.00024931,3]
[327862565,1716563443301,-500.0,0.00024931,3]
[327862566,1716563443314,-554.51,0.00024931,3]
[327862567,1716563443324,-6588.38,0.00024931,3]
[327862568,1716563443334,-500.0,0.00024931,3]
[327862569,1716563443344,-1834.66,0.00024931,3]
[327862570,1716563443353,-928.42,0.00024931,3]
[327862571,1716563443363,-500.0,0.00024931,3]
[327862572,1716563443372,-500.0,0.00024931,3]
[327862573,1716563443381,-500.0,0.00024931,3]
[327862574,1716563443391,-1335.47,0.00024931,3]
[327862575,1716563443400,-3728.77,0.00024931,3]
[327862576,1716563443410,-500.0,0.00024931,3]
[327862577,1716563443419,-500.0,0.00024931,3]
[327862578,1716563443428,-533.33,0.00024931,3]
[327862579,1716563443437,-500.0,0.00024931,3]
[327862580,1716563443446,-747.37,0.00024931,3]
[327862581,1716563443455,-500.0,0.00024931,3]
[327862582,1716563443464,-500.0,0.00024931,3]
[327862583,1716563443473,-500.0,0.00024931,3]
[327862584,1716563443483,-500.0,0.00024931,3]
[327862585,1716563443497,-500.0,0.00024931,3]
[327862586,1716563443506,-3668.68,0.00024931,3]
[327862587,1716563443515,-1198.07,0.00024931,3]
[327862588,1716563443524,-500.0,0.00024931,3]
[327862589,1716563443533,-526.6,0.00024931,3]
[327862590,1716563443542,-1464.19,0.00024931,3]
[327862591,1716563443551,-1164.05,0.00024931,3]
[327862592,1716563443559,-614.2,0.00024931,3]
[327862593,1716563443568,-500.0,0.00024931,3]
[327862594,1716563443577,-10703.05,0.00024931,3]
[327862595,1716563443600,-897.89,0.00024931,3]
[327862596,1716563443611,-1606.02,0.00024931,3]
[327862597,1716563443621,-500.0,0.00024931,3]
[327862598,1716563443631,-500.0,0.00024931,3]
[327862599,1716563443640,-500.0,0.00024931,3]
[327862600,1716563443650,-3249.69,0.00024931,3]
[327862602,1716563443661,-500.0,0.00024931,3]
[327862604,1716563443671,-500.0,0.00024931,3]
[327862605,1716563443680,-157.52993329,0.00024931,3]
[327862607,1716563443690,-1564.26,0.00024931,3]
[327862609,1716563443699,-500.0,0.00024931,3]
[327862610,1716563443708,-1473.95,0.00024931,3]
[327862612,1716563443718,-12628.55,0.00024931,3]
[327862613,1716563443728,-959.82,0.00024931,3]
[327862614,1716563443739,-2131.58,0.00024931,3]
[327862615,1716563443751,-519.32,0.00024931,3]
[327862616,1716563443760,-500.0,0.00024931,3]
[327862617,1716563443770,-500.0,0.00024931,3]
[327862618,1716563443779,-500.0,0.00024931,3]
[327862619,1716563443788,-1391.49,0.00024931,3]
[327862620,1716563443798,-500.0,0.00024931,3]
[327862621,1716563443808,-500.0,0.00024931,3]
[327862622,1716563443820,-632.22,0.00024931,3]
[327862623,1716563443831,-662.16,0.00024931,3]
[327862624,1716563443842,-500.0,0.00024931,3]
[327862625,1716563443853,-802.15,0.00024931,3]
[327862626,1716563443864,-771.62,0.00024931,3]
[327862627,1716563443874,-22859.27879206,0.00025,2]
[327862628,1716563443884,-583.4132861,0.00025,2]
[327862629,1716563443894,-155.61513001,0.00025,14]
[327862630,1716563443904,-401.04849883,0.00025,2]
[327862631,1716563443914,-3131.125128,0.00025105,2]
[327862632,1716563443924,-150.83408251,0.00025152,4]
[327862633,1716563443934,-500.0,0.00025205,4]
[327862634,1716563443944,-500.0,0.00025205,4]
[327862635,1716563443953,-500.0,0.00025205,4]
[327862636,1716563443963,-500.0,0.00025205,4]
[327862637,1716563443973,-323.48640946,0.00025205,4]
[327862638,1716563443983,-250.0,0.00025205,4]
[327862639,1716563443994,-500.0,0.00025205,4]
[327862640,1716563444004,-670.2,0.00025205,4]
[327862641,1716563444013,-500.0,0.00025205,4]
[327862642,1716563444023,-500.0,0.00025205,4]
[327862643,1716563444033,-627.46,0.00025205,4]
[327862644,1716563444043,-500.0,0.00025205,4]
[327862645,1716563444052,-500.0,0.00025205,4]
[327862646,1716563444063,-500.0,0.00025205,4]
[327862647,1716563444073,-500.0,0.00025205,4]
[327862648,1716563444083,-500.0,0.00025205,4]
[327862649,1716563444093,-500.0,0.00025205,4]
[327862650,1716563444103,-500.0,0.00025205,4]
[327862651,1716563444112,-831.85,0.00025205,4]
[327862652,1716563444122,-535.47,0.00025205,4]
[327862653,1716563444132,-902.77,0.00025205,4]
[327862654,1716563444142,-500.0,0.00025205,4]
[327862655,1716563444152,-500.0,0.00025205,4]
[327862656,1716563444163,-500.0,0.00025205,4]
[327862657,1716563444173,-500.0,0.00025205,4]
[327862658,1716563444183,-500.0,0.00025205,4]
[327862659,1716563444192,-473.96604082,0.00025205,2]
[327862660,1716563444203,-414.68718954,0.00025205,4]
[327862661,1716563444213,-1003.69,0.00025205,4]
[327862662,1716563444229,-615.12,0.00025205,4]
[327862663,1716563444239,-500.0,0.00025205,4]
[327862664,1716563444250,-1029.36,0.00025205,4]
[327862665,1716563444261,-913.62,0.00025205,4]
[327862666,1716563444271,-1050.38,0.00025205,4]
[327862667,1716563444280,-1319.31,0.00025205,4]
[327862668,1716563444290,-500.0,0.00025205,4]
[327862669,1716563444302,-500.0,0.00025205,4]
[327862670,1716563444312,-500.0,0.00025205,4]
[327862671,1716563444322,-500.0,0.00025205,4]
[327862672,1716563444332,-1025.28,0.00025205,4]
[327862673,1716563444342,-562.25,0.00025205,4]
[327862674,1716563444354,-402.35400339,0.00025205,4]
[327862675,1716563444364,-1352.42,0.00025205,4]
[327862676,1716563444376,-1741.98,0.00025205,4]
[327862677,1716563444386,-500.0,0.00025205,4]
[327862678,1716563444396,-758.1,0.00025205,4]
[327862679,1716563444405,-500.0,0.00025205,4]
[327862680,1716563444415,-553.66,0.00025205,4]
[327862681,1716563444425,-500.0,0.00025205,4]
[327862682,1716563444435,-500.0,0.00025205,4]
[327862683,1716563444448,-500.0,0.00025205,4]
[327862684,1716563444457,-605.03,0.00025205,4]
[327862685,1716563444467,-500.0,0.00025205,4]
[327862686,1716563444476,-500.0,0.00025205,4]
[327862687,1716563444486,-807.7,0.00025205,4]
[327862688,1716563444498,-500.0,0.00025205,4]
[327862689,1716563444508,-321.24535887,0.00025205,4]
[327862690,1716563444517,-500.0,0.00025205,4]
[327862691,1716563444527,-500.0,0.00025205,4]
[327862692,1716563444536,-1167.23,0.00025205,4]
[327862693,1716563444547,-500.0,0.00025205,4]
[327862694,1716563444558,-500.0,0.00025205,4]
[327862695,1716563444568,-1266.99,0.00025205,4]
[327862696,1716563444579,-500.0,0.00025205,4]
[327862697,1716563444589,-1109.82,0.00025205,4]
[327862698,1716563444599,-4811.81,0.00025205,4]
[327862699,1716563444609,-500.0,0.00025205,4]
[327862700,1716563444618,-1914.36,0.00025205,4]
[327862701,1716563444629,-500.0,0.00025205,4]
[327862702,1716563444638,-978.64,0.00025205,4]
[327862703,1716563444648,-500.0,0.00025205,4]
[327862704,1716563444658,-554.51,0.00025205,4]
[327862705,1716563444668,-6588.38,0.00025205,4]
[327862706,1716563444679,-1834.66,0.00025205,4]
[327862707,1716563444690,-928.42,0.00025205,4]
[327862708,1716563444700,-500.0,0.00025205,4]
[327862709,1716563444710,-500.0,0.00025205,4]
[327862710,1716563444721,-500.0,0.00025205,4]
[327862711,1716563444732,-1335.47,0.00025205,4]
[327862712,1716563444744,-3728.77,0.00025205,4]
[327862713,1716563444754,-500.0,0.00025205,4]
[327862714,1716563444764,-500.0,0.00025205,4]
[327862715,1716563444775,-533.33,0.00025205,4]
[327862716,1716563444784,-500.0,0.00025205,4]
[327862717,1716563444795,-747.37,0.00025205,4]
[327862718,1716563444805,-500.0,0.00025205,4]
[327862719,1716563444816,-500.0,0.00025205,4]
[327862720,1716563444826,-500.0,0.00025205,4]
[327862721,1716563444836,-500.0,0.00025205,4]
[327862722,1716563444847,-500.0,0.00025205,4]
[327862723,1716563444857,-3668.68,0.00025205,4]
[327862724,1716563444867,-1198.07,0.00025205,4]
[327862725,1716563444878,-500.0,0.00025205,4]
[327862726,1716563444888,-526.6,0.00025205,4]
[327862727,1716563444898,-1464.19,0.00025205,4]
[327862728,1716563444908,-1164.05,0.00025205,4]
[327862729,1716563444919,-614.2,0.00025205,4]
[327862731,1716563444929,-500.0,0.00025205,4]
[327862732,1716563444938,-10703.05,0.00025205,4]
[327862734,1716563444948,-1606.02,0.00025205,4]
[327862736,1716563444958,-897.89,0.00025205,4]
[327862737,1716563444968,-500.0,0.00025205,4]
[327862738,1716563444979,-500.0,0.00025205,4]
[327862739,1716563444989,-500.0,0.00025205,4]
[327862740,1716563445003,-3249.69,0.00025205,4]
[327862741,1716563445013,-500.0,0.00025205,4]
[327862742,1716563445023,-1564.26,0.00025205,4]
[327862743,1716563445033,-500.0,0.00025205,4]
[327862744,1716563445043,-1473.95,0.00025205,4]
[327862745,1716563445052,-12628.55,0.00025205,4]
[327862746,1716563445062,-2131.58,0.00025205,4]
[327862747,1716563445073,-959.82,0.00025205,4]
[327862748,1716563445083,-519.32,0.00025205,4]
[327862749,1716563445092,-500.0,0.00025205,4]
[327862750,1716563445101,-500.0,0.00025205,4]
[327862751,1716563445111,-500.0,0.00025205,4]
[327862752,1716563445122,-1391.49,0.00025205,4]
[327862753,1716563445133,-500.0,0.00025205,4]
[327862754,1716563445143,-500.0,0.00025205,4]
[327862755,1716563445153,-632.22,0.00025205,4]
[327862756,1716563445163,-662.16,0.00025205,4]
[327862757,1716563445173,-639.73866435,0.00025205,4]
[327862758,1716563445182,-802.15,0.00025205,4]
[327862759,1716563445192,-771.62,0.00025205,4]
[327862760,1716563445202,-500.0,0.00025479,5]
[327862761,1716563445212,-500.0,0.00025479,5]
[327862762,1716563445222,-500.0,0.00025479,5]
[327862763,1716563445237,-500.0,0.00025479,5]
[327862765,1716563445249,-250.0,0.00025479,5]
[327862767,1716563445259,-500.0,0.00025479,5]
[327862768,1716563445269,-670.2,0.00025479,5]
[327862770,1716563445279,-500.0,0.00025479,5]
[327862772,1716563445289,-500.0,0.00025479,5]
[327862774,1716563445299,-627.46,0.00025479,5]
[327862776,1716563445312,-500.0,0.00025479,5]
[327862778,1716563445323,-500.0,0.00025479,5]
[327862780,1716563445332,-500.0,0.00025479,5]
[327862782,1716563445341,-500.0,0.00025479,5]
[327862783,1716563445350,-500.0,0.00025479,5]
[327862785,1716563445360,-500.0,0.00025479,5]
[327862787,1716563445369,-500.0,0.00025479,5]
[327862789,1716563445379,-831.85,0.00025479,5]
[327862791,1716563445389,-535.47,0.00025479,5]
[327862793,1716563445398,-902.77,0.00025479,5]
[327862794,1716563445408,-500.0,0.00025479,5]
[327862795,1716563445417,-500.0,0.00025479,5]
[327862796,1716563445427,-500.0,0.00025479,5]
[327862797,1716563445436,-500.0,0.00025479,5]
[327862798,1716563445446,-500.0,0.00025479,5]
[327862799,1716563445455,-1003.69,0.00025479,5]
[327862800,1716563445465,-615.12,0.00025479,5]
[327862801,1716563445475,-500.0,0.00025479,5]
[327862802,1716563445486,-1029.36,0.00025479,5]
[327862803,1716563445498,-913.62,0.00025479,5]
[327862804,1716563445507,-1050.38,0.00025479,5]
[327862805,1716563445517,-1319.31,0.00025479,5]
[327862806,1716563445526,-500.0,0.00025479,5]
[327862807,1716563445675,-500.0,0.00025479,5]
[327862808,1716563445685,-500.0,0.00025479,5]
[327862809,1716563445694,-500.0,0.00025479,5]
[327862810,1716563445704,-1025.28,0.00025479,5]
[327862811,1716563445713,-562.25,0.00025479,5]
[327862812,1716563445723,-1352.42,0.00025479,5]
[327862813,1716563445732,-1741.98,0.00025479,5]
[327862814,1716563445744,-500.0,0.00025479,5]
[327862815,1716563445753,-758.1,0.00025479,5]
[327862816,1716563445772,-500.0,0.00025479,5]
[327862817,1716563445785,-553.66,0.00025479,5]
[327862818,1716563445796,-500.0,0.00025479,5]
[327862819,1716563445806,-500.0,0.00025479,5]
[327862820,1716563445817,-500.0,0.00025479,5]
[327862821,1716563445827,-605.03,0.00025479,5]
[327862822,1716563445837,-500.0,0.00025479,5]
[327862823,1716563445847,-500.0,0.00025479,5]
[327862824,1716563445858,-807.7,0.00025479,5]
[327862825,1716563445868,-153.4307295,0.00025479,5]
[327862826,1716563445877,-500.0,0.00025479,5]
[327862827,1716563445887,-500.0,0.00025479,5]
[327862828,1716563445897,-1167.23,0.00025479,5]
[327862829,1716563445907,-500.0,0.00025479,5]
[327862830,1716563445916,-500.0,0.00025479,5]
[327862831,1716563445926,-1266.99,0.00025479,5]
[327862832,1716563445937,-500.0,0.00025479,5]
[327862833,1716563445947,-1109.82,0.00025479,5]
[327862834,1716563445956,-4811.81,0.00025479,5]
[327862835,1716563445966,-500.0,0.00025479,5]
[327862836,1716563445976,-1914.36,0.00025479,5]
[327862837,1716563445987,-500.0,0.00025479,5]
[327862838,1716563445998,-978.64,0.00025479,5]
[327862839,1716563446008,-500.0,0.00025479,5]
[327862840,1716563446018,-554.51,0.00025479,5]
[327862841,1716563446029,-6588.38,0.00025479,5]
[327862842,1716563446039,-1834.66,0.00025479,5]
[327862843,1716563446048,-928.42,0.00025479,5]
[327862844,1716563446058,-309.95315098,0.00025479,5]
[327862845,1716563446068,-500.0,0.00025479,5]
[327862846,1716563446078,-500.0,0.00025479,5]
[327862847,1716563446089,-1335.47,0.00025479,5]
[327862848,1716563446099,-3728.77,0.00025479,5]
[327862849,1716563446109,-500.0,0.00025479,5]
[327862850,1716563446119,-500.0,0.00025479,5]
[327862851,1716563446129,-533.33,0.00025479,5]
[327862852,1716563446139,-500.0,0.00025479,5]
[327862853,1716563446150,-747.37,0.00025479,5]
[327862854,1716563446160,-500.0,0.00025479,5]
[327862855,1716563446170,-500.0,0.00025479,5]
[327862856,1716563446180,-500.0,0.00025479,5]
[327862857,1716563446191,-500.0,0.00025479,5]
[327862858,1716563446200,-500.0,0.00025479,5]
[327862859,1716563446210,-3668.68,0.00025479,5]
[327862860,1716563446224,-1198.07,0.00025479,5]
[327862861,1716563446235,-500.0,0.00025479,5]
[327862862,1716563446247,-526.6,0.00025479,5]
[327862863,1716563446259,-1464.19,0.00025479,5]
[327862864,1716563446269,-1164.05,0.00025479,5]
[327862865,1716563446279,-614.2,0.00025479,5]
[327862866,1716563446289,-500.0,0.00025479,5]
[327862867,1716563446301,-10703.05,0.00025479,5]
[327862868,1716563446311,-1606.02,0.00025479,5]
[327862869,1716563446321,-897.89,0.00025479,5]
[327862870,1716563446331,-500.0,0.00025479,5]
[327862871,1716563446342,-500.0,0.00025479,5]
[327862872,1716563446352,-3249.69,0.00025479,5]
[327862873,1716563446362,-500.0,0.00025479,5]
[327862874,1716563446372,-500.0,0.00025479,5]
[327862875,1716563446382,-1564.26,0.00025479,5]
[327862876,1716563446392,-500.0,0.00025479,5]
[327862877,1716563446402,-1473.95,0.00025479,5]
[327862878,1716563446412,-12628.55,0.00025479,5]
[327862879,1716563446422,-959.82,0.00025479,5]
[327862880,1716563446433,-2131.58,0.00025479,5]
[327862881,1716563446447,-519.32,0.00025479,5]
[327862882,1716563446457,-500.0,0.00025479,5]
[327862883,1716563446468,-500.0,0.00025479,5]
[327862885,1716563446478,-500.0,0.00025479,5]
[327862886,1716563446489,-1391.49,0.00025479,5]
[327862888,1716563446501,-500.0,0.00025479,5]
[327862890,1716563446511,-500.0,0.00025479,5]
[327862892,1716563446521,-632.22,0.00025479,5]
[327862894,1716563446530,-662.16,0.00025479,5]
[327862896,1716563446540,-802.15,0.00025479,5]
[327862898,1716563446550,-771.62,0.00025479,5]
[327862900,1716563446561,-150.83408251,0.00025665,2]
[327862902,1716563446571,-500.0,0.00025753,6]
[327862904,1716563446581,-288.08997454,0.00025753,6]
[327862905,1716563446591,-500.0,0.00025753,6]
[327862907,1716563446601,-500.0,0.00025753,6]
[327862909,1716563446611,-250.0,0.00025753,6]
[327862911,1716563446620,-500.0,0.00025753,6]
[327862913,1716563446630,-670.2,0.00025753,6]
[327862915,1716563446641,-500.0,0.00025753,6]
[327862917,1716563446651,-500.0,0.00025753,6]
[327862919,1716563446660,-627.46,0.00025753,6]
[327862921,1716563446670,-500.0,0.00025753,6]
[327862923,1716563446680,-500.0,0.00025753,6]
[327862925,1716563446689,-549.40908224,0.00025753,6]
[327862927,1716563446699,-500.0,0.00025753,6]
[327862929,1716563446709,-500.0,0.00025753,6]
[327862931,1716563446719,-500.0,0.00025753,6]
[327862933,1716563446729,-183.66251676,0.00025753,6]
[327862935,1716563446738,-831.85,0.00025753,6]
[327862938,1716563446751,-535.47,0.00025753,6]
[327862940,1716563446760,-902.77,0.00025753,6]
[327862942,1716563446770,-500.0,0.00025753,6]
[327862944,1716563446780,-500.0,0.00025753,6]
[327862946,1716563446790,-500.0,0.00025753,6]
[327862947,1716563446800,-500.0,0.00025753,6]
[327862949,1716563446810,-500.0,0.00025753,6]
[327862950,1716563446819,-1003.69,0.00025753,6]
[327862951,1716563446828,-615.12,0.00025753,6]
[327862952,1716563446838,-500.0,0.00025753,6]
[327862954,1716563446848,-1029.36,0.00025753,6]
[327862955,1716563446858,-913.62,0.00025753,6]
[327862956,1716563446868,-1050.38,0.00025753,6]
[327862957,1716563446877,-1319.31,0.00025753,6]
[327862958,1716563446887,-498.20330598,0.00025753,6]
[327862959,1716563446896,-500.0,0.00025753,6]
[327862960,1716563446906,-500.0,0.00025753,6]
[327862961,1716563446916,-500.0,0.00025753,6]
[327862962,1716563446927,-1025.28,0.00025753,6]
[327862963,1716563446937,-562.25,0.00025753,6]
[327862965,1716563446947,-1352.42,0.00025753,6]
[327862967,1716563446957,-1741.98,0.00025753,6]
[327862968,1716563446967,-500.0,0.00025753,6]
[327862969,1716563446976,-758.1,0.00025753,6]
[327862970,1716563446986,-553.66,0.00025753,6]
[327862971,1716563446998,-500.0,0.00025753,6]
[327862972,1716563447008,-500.0,0.00025753,6]
[327862973,1716563447017,-500.0,0.00025753,6]
[327862974,1716563447028,-500.0,0.00025753,6]
[327862975,1716563447038,-605.03,0.00025753,6]
[327862976,1716563447048,-500.0,0.00025753,6]
[327862977,1716563447058,-500.0,0.00025753,6]
[327862978,1716563447068,-807.7,0.00025753,6]
[327862979,1716563447078,-500.0,0.00025753,6]
[327862980,1716563447088,-500.0,0.00025753,6]
[327862981,1716563447099,-1167.23,0.00025753,6]
[327862982,1716563447109,-500.0,0.00025753,6]
[327862983,1716563447119,-500.0,0.00025753,6]
[327862984,1716563447129,-1266.99,0.00025753,6]
[327862985,1716563447140,-443.99359076,0.00025753,6]
[327862986,1716563447150,-1109.82,0.00025753,6]
[327862987,1716563447160,-4811.81,0.00025753,6]
[327862988,1716563447170,-1914.36,0.00025753,6]
[327862989,1716563447180,-500.0,0.00025753,6]
[327862990,1716563447196,-500.0,0.00025753,6]
[327862991,1716563447206,-978.64,0.00025753,6]
[327862992,1716563447216,-500.0,0.00025753,6]
[327862993,1716563447227,-554.51,0.00025753,6]
[327862994,1716563447240,-6588.38,0.00025753,6]
[327862995,1716563447252,-1834.66,0.00025753,6]
[327862996,1716563447263,-928.42,0.00025753,6]
[327862997,1716563447273,-500.0,0.00025753,6]
[327862998,1716563447283,-500.0,0.00025753,6]
[327862999,1716563447293,-1335.47,0.00025753,6]
[327863000,1716563447304,-3728.77,0.00025753,6]
[327863001,1716563447315,-500.0,0.00025753,6]
[327863002,1716563447326,-500.0,0.00025753,6]
[327863003,1716563447336,-533.33,0.00025753,6]
[327863004,1716563447346,-500.0,0.00025753,6]
[327863005,1716563447356,-747.37,0.00025753,6]
[327863006,1716563447366,-500.0,0.00025753,6]
[327863007,1716563447376,-500.0,0.00025753,6]
[327863008,1716563447392,-500.0,0.00025753,6]
[327863009,1716563447403,-387.46,0.00025753,6]
[327863010,1716563447413,-500.0,0.00025753,6]
[327863011,1716563447423,-3668.68,0.00025753,6]
[327863012,1716563447433,-1198.07,0.00025753,6]
[327863013,1716563447443,-500.0,0.00025753,6]
[327863014,1716563447454,-526.6,0.00025753,6]
[327863015,1716563447464,-1464.19,0.00025753,6]
[327863016,1716563447475,-1164.05,0.00025753,6]
[327863017,1716563447484,-614.2,0.00025753,6]
[327863018,1716563447495,-500.0,0.00025753,6]
[327863019,1716563447504,-10703.05,0.00025753,6]
[327863020,1716563447514,-1606.02,0.00025753,6]
[327863021,1716563447524,-897.89,0.00025753,6]
[327863022,1716563447534,-500.0,0.00025753,6]
[327863023,1716563447544,-500.0,0.00025753,6]
[327863024,1716563447554,-505.20196356,0.00025753,6]
[327863025,1716563447564,-3249.69,0.00025753,6]
[327863026,1716563447573,-500.0,0.00025753,6]
[327863027,1716563447583,-1564.26,0.00025753,6]
[327863028,1716563447593,-500.0,0.00025753,6]
[327863029,1716563447602,-1473.95,0.00025753,6]
[327863030,1716563447612,-12628.55,0.00025753,6]
[327863031,1716563447621,-959.82,0.00025753,6]
[327863032,1716563447630,-2131.58,0.00025753,6]
[327863033,1716563447639,-519.32,0.00025753,6]
[327863034,1716563447649,-500.0,0.00025753,6]
[327863035,1716563447659,-500.0,0.00025753,6]